Cogmind - Beta 14 @@@ ROGUE MODE // 2024.09.17 @ 19:40:31 Player: Mallow Result: Destroyed self via exploding Fusion Modulator Performance ------------- Evolutions (0) 0 Regions Visited (1) 200 Robots Destroyed (10) 50 Value Destroyed (298) 298 Prototype IDs (0) 0 Alien Tech Used (0) 0 Bonus (0) 0 TOTAL SCORE: 548 Bonus ------- None Cogmind --------- Core Integrity 0/250 Matter 290/300 Energy 95/100 System Corruption 0% Temperature Cool (24) Movement Treading (160) Location -10/Materials Parts ------- > --- POWER (1) -------- (None) > --- PROPULSION (2) --- Light Treads Light Treads > --- UTILITY (2) ------ Medium Storage Unit > --- WEAPON (2) ------- Flail > --- INVENTORY (10) --- Ion Engine Light Treads Light Treads Medium Storage Unit Peak State ------------ > --- POWER ------------ Light Nuclear Core > --- PROPULSION ------- Light Treads Light Treads > --- UTILITY ---------- Small Storage Unit Medium Storage Unit > --- WEAPON ----------- Assault Rifle Light Assault Rifle > --- INVENTORY -------- Ion Engine Light Ion Engine [Rating: 9] Favorites ----------- Power Light Nuclear Core Engine Ion Engine Power Core Light Nuclear Core Propulsion Light Treads Treads Light Treads Utility Medium Storage Unit Storage Medium Storage Unit Weapon Light Assault Rifle Ballistic Gun Light Assault Rifle Impact Weapon Flail Build | -11 -10 ------- Run | Yrd Mat Slots Evolved . | . . Power . | . . Propulsion . | . . Utility . | . . Weapon . | . . Parts Attached 13 | 7 6 Power 3 | 2 1 Engine 2 | 2 . Core 1 | . 1 Reactor . | . . Propulsion 4 | 2 2 Treads 4 | 2 2 Leg . | . . Wheel . | . . Hover . | . . Flight . | . . Utility 3 | 1 2 Device . | . . Storage 3 | 1 2 Processor . | . . Hackware . | . . Protection . | . . Artifact . | . . Weapon 3 | 2 1 Energy Gun . | . . Energy Cannon . | . . Ballistic Gun 2 | 2 . Ballistic Cannon . | . . Launcher . | . . Special Weapon . | . . Impact Weapon 1 | . 1 Slashing Weapon . | . . Piercing Weapon . | . . Special Melee Weapon . | . . Unidentified Prototypes . | . . Parts Lost 3 | . 3 Power 1 | . 1 Propulsion . | . . Utility . | . . Weapon 2 | . 2 Highest Loss Streak 3 | . 3 To Critical Strikes . | . . Average Slot Usage (%) 84 | . 84 Engine 3 | . 3 Core 10 | . 10 Treads 28 | . 28 Storage 14 | . 14 Ballistic Gun 27 | . 27 Peak Build Rating 9 | 6 9 Average Rating 7 | 4 7 On Entrance 3 | . 6 Naked Turns . | . . Heaviest Build 23 | 13 23 Greatest Support 40 | 40 40 Greatest Overweight (x) . | . . Average Overweight (x) . | . . Largest Inventory Capacity 10 | 8 10 Average Capacity 8 | 7 9 Most Carried 4 | 1 4 Average Carried 1 | . 1 Final Capacity 10 | 8 10 Final Carried 4 | 1 4 Class Distribution -------------------- 100% | Mutant Dominant Class ---------------- Mutant | -10/Materials Resources | -11 -10 ----------- Run | Yrd Mat Matter Collected 393 | 226 167 Remotely . | . . Salvage Created 331 | . 331 Parts 18 | . 18 Haulers Intercepted . | . . Recyclers Shooed . | . . Parts Field Recycled . | . . Retrieved Matter . | . . Parts Self-Destructed . | . . Prevented . | . . Kills | -11 -10 ------- Run | Yrd Mat Combat Hostiles Destroyed 8 | . 8 Guns 6 | . 6 AOE 1 | . 1 Classes Destroyed 4 | . 4 Recycler 1 | . 1 Operator 1 | . 1 Swarmer 3 | . 3 Grunt 5 | . 5 Best Kill Streak 3 | . 3 Combat Bots Only 3 | . 3 Max Kills in Single Turn 2 | . 2 Gunslinging . | . . Exploded 1 | . 1 Melee . | . . Uniques/NPCs Destroyed . | . . Combat | -11 -10 -------- Run | Yrd Mat Hostile Shots Fired 87 | . 87 Missed 26 | . 26 Damage Taken 843 | . 843 Core 255 | . 255 Absorbed by Shields . | . . Core Remaining (%) 100 | 100 . Volleys Fired 23 | . 23 Largest 2 | . 2 Hottest 40 | . 40 Shots Fired 46 | . 46 Gun 46 | . 46 Cannon . | . . Launcher . | . . Special . | . . Kinetic 46 | . 46 Thermal . | . . Explosive . | . . Electromagnetic . | . . Robot Hit Streak 7 | . 7 Robot Miss Streak 2 | . 2 Penetration Max . | . . Secondary Targets 1 | . 1 Max Gunslinging Chain 1 | . 1 Shots Hit Robots 33 | . 33 Core Hits 14 | . 14 Critical Kills . | . . Critical Parts Destroyed 1 | . 1 Critical Strikes 1 | . 1 Smash 1 | . 1 Melee Attacks 6 | . 6 Impact 6 | . 6 Slashing . | . . Piercing . | . . Sneak Attacks . | . . Combat Hostiles . | . . Follow-up Attacks . | . . Damage Inflicted 548 | . 548 Guns 315 | . 315 Cannons . | . . Explosions 153 | . 153 Melee 78 | . 78 Ramming 2 | . 2 Kinetic 315 | . 315 Thermal 153 | . 153 Explosive . | . . Electromagnetic . | . . Impact 78 | . 78 Slashing . | . . Piercing . | . . Highest Corruption . | . . Average Corruption . | . . Corruption Purged . | . . Corruption Blocked . | . . Overload Shots . | . . Overflow Damage 180 | . 180 Projectiles . | . . Explosions 151 | . 151 Melee 29 | . 29 Knockbacks 1 | . 1 Impact 1 | . 1 Kinetic . | . . Secondary . | . . Self-Inflicted Damage 144 | . 144 Shots 2 | . 2 Rammed 1 | . 1 Targets Rammed 1 | . 1 Kicked . | . . Crushed . | . . Highest Temperature 14 | . 14 Average Temperature 6 | . 6 Received Heat Transfer 327 | . 327 Siege Activations . | . . Robots Corrupted 1 | . 1 Combat Hostiles 1 | . 1 Parts Fried 2 | . 2 Impact Corruptions 1 | . 1 Robots Melted . | . . Combat Hostiles . | . . Parts Melted . | . . Heat Transferred 100 | . 100 Parts Sabotaged . | . . Parts Stolen . | . . Parts Stripped . | . . Power Chain Reactions . | . . Alert | -11 -10 ------- Run | Yrd Mat Peak Influence 230 | . 230 Initial . | . . Average 62 | . 74 Maximum Alert Level 1 | . 1 Low Security (%) 96 | 100 96 Level 1 3 | . 3 Level 2 . | . . Level 3 . | . . Level 4 . | . . Level 5 . | . . High Security . | . . Max Security . | . . Squads Dispatched 2 | . 2 Investigation . | . . Extermination . | . . Reinforcement 2 | . 2 Assault . | . . Garrison . | . . Intercept . | . . Searches Triggered . | . . Construction Impeded . | . . Haulers Reinforced . | . . Active Scanning Responses . | . . Cargo Convoy Interrupts . | . . Stealth | -11 -10 --------- Run | Yrd Mat Distress Signals . | . . Communications Jammed . | . . Distress Signals . | . . Times Spotted 16 | . 16 Peak Tracking Total 7 | . 7 Tactical Retreats 2 | . 2 Traps | -11 -10 ------- Run | Yrd Mat Traps Triggered . | . . Indirectly . | . . Trap Hack Attempts . | . . Triggered . | . . Disarmed . | . . Reprogrammed . | . . Reused . | . . Traps Extracted . | . . Installed . | . . Triggered . | . . Machines | -11 -10 ---------- Run | Yrd Mat Machines Disabled 5 | . 5 Max in Single Turn 5 | . 5 Machines Repaired . | . . Machines Dismantled . | . . Machines Sabotaged . | . . Overloaded Fab Kills . | . . Hacking | -11 -10 --------- Run | Yrd Mat Machines Accessed 2 | . 2 Terminals 2 | . 2 Fabricators . | . . Repair Stations . | . . Recycling Units . | . . Scanalyzers . | . . Garrison Access . | . . Total Hacks 5 | . 5 Successful 3 | . 3 Failed 2 | . 2 Catastrophic . | . . Database Lockouts . | . . Manual . | . . Terminals 5 | . 5 Fabricators . | . . Repair Stations . | . . Recycling Units . | . . Scanalyzers . | . . Garrison Access . | . . Terminal Hacks 3 | . 3 Alert Level 2 | . 2 Zone Layout 1 | . 1 Fabricator Hacks . | . . Repair Station Hacks . | . . Recycling Unit Hacks . | . . Scanalyzer . | . . Garrison Access Hacks . | . . Unauthorized Hacks . | . . Terminals . | . . Fabricators . | . . Repair Stations . | . . Recycling Units . | . . Scanalyzers . | . . Garrison Access . | . . Data Cores Recovered . | . . Used . | . . Hacking Detections 2 | . 2 Full Trace Events . | . . Feedback Events . | . . Feedback Blocked . | . . Robot Schematics Acquired . | . . Robots Built . | . . Authchips . | . . Time . | . . Total Robot Build Rating . | . . Part Schematics Acquired . | . . Parts Built . | . . Authchips . | . . Time . | . . Total Part Build Rating . | . . Parts Repaired . | . . Time . | . . Parts Recycled . | . . Recycled Matter . | . . Retrieved Matter . | . . Retrieved Components . | . . Parts Scanalyzed . | . . Part Schematics Acquired . | . . Parts Damaged . | . . Bothacking | -11 -10 ------------ Run | Yrd Mat Used RIF Installer . | . . Robots Hacked . | . . Non-combat . | . . Combat . | . . Robot Hacks Applied . | . . Relay Couplers Released . | . . Fabnet Peak Effective % . | . . Robots Rewired . | . . Allies Hacked . | . . Hacks Repelled . | . . Allies | -11 -10 -------- Run | Yrd Mat Total Allies . | . . Largest Group . | . . Highest-Rated Group . | . . Highest-Rated Ally . | . . Total Orders . | . . Ally Attacks . | . . Total Damage . | . . Kills . | . . Allies Corrupted . | . . Allies Melted . | . . Intel | -11 -10 ------- Run | Yrd Mat Robot Analysis Total . | . . Derelict Logs Recovered . | . . Drone Launches . | . . Drone Recoveries . | . . Exploration | -11 -10 ------------- Run | Yrd Mat Turns Passed 714 | 110 604 Spaces Moved 386 | 65 321 Core 3 | 3 . Treads 383 | 62 321 Legs . | . . Wheels . | . . Hover . | . . Flight . | . . Fastest Speed 50 | 50 160 Average Speed 159 | 154 160 Slowest Speed 160 | 160 160 Overloaded Moves . | . . Propulsion Burnouts . | . . Robots Hopped . | . . Cave-ins Triggered . | . . Exploration Rate (%) 33 | 4 63 Regions Visited 1 Branch Regions . Pre-discovered Areas . | . . Known Exits Taken . | . . Unknown Exits Taken 1 | 1 . Scrap Searched . | . . Spaces Dug . | . . Terrain Destroyed 7 | . 7 Melee . | . . Projectile . | . . AOE 7 | . 7 Terrain Rammed . | . . Walls Destroyed . | . . Machines Disabled . | . . Actions | -11 -10 --------- Run | Yrd Mat Total 432 | 71 361 Wait . | . . Move 385 | 64 321 Hop . | . . Pick Up 1 | . 1 Fast Attach 7 | 6 1 Attach 1 | . 1 Detach 1 | . 1 Swap 5 | 1 4 Drop 2 | . 2 Fire 23 | . 23 Melee 6 | . 6 Ram . | . . Kick . | . . Crush 1 | . 1 Escape Stasis . | . . Rewire . | . . Trap . | . . Miscellaneous . | . . Route ------- -11/Scrapyard -10/Materials (discovered 1 exit: [*Mat]) History --------- Turn | Location | Event 23 | -11/Scrapyard | Discovered new exit (range 15) 111 | -11/Scrapyard | Entered Materials 306 | -10/Materials | Build established: Mutant 688 | -10/Materials | Discovered new exit (range 15) 706 | -10/Materials | Core integrity fell below 50% 715 | -10/Materials | Destroyed self via exploding Fusion Modulator Last Messages --------------- G-34 Mercenary suffers critical hit (Smash). Destroyed Sml. Laser. G-34 Mercenary system corrupted by crushing effect. G-34 Mercenary system terminally corrupted. Ion Engine fried. Heat Sink fried. R-06 Scavenger collects Corrupted Aluminum Leg. T-07 Excavator is excavating. Lgt. Nuclear Core destroyed. Fusion Modulator explodes. [Achievement: Batter Up] Destroyed Lgt. Nuclear Core. G-47 Trooper destroyed. Lgt. Assault Rifle destroyed. Destroyed Lgt. Assault Rifle. Fusion Modulator explodes. R-06 Scavenger destroyed. Fusion Modulator explodes. Terminal disabled. Map ----- +----------------------------------------------------+ | | | | | | | | | ???????????????????????????????????????????????? | | ???????????????????????????????????????????????? | | ???????????????????????????????????????????????? | | ???????????????????????????????????????????????? | | ??????????????????? ???????????????????????????? | | ?????????????????## ####???????????????????????? | | ???????????????? ???????????????????????? | | ?????????????????< ???????????????????????? | | ?????????????????? ???????????????????????? | | ??????????????????# ^^^ ???????????????????????? | | ??????????????????# #??????????????????????? | | ??????????????????# #??????????????????????? | | ??????????????????# #??????????????????????? | | ??????????????????# #??????????????????????? | | ??????????????????# #??????????????????????? | | ??????????????????# ########???????????????? | | ??????????????????# g #???????????????? | | ??????????????????# #???????????????? | | ??????????????????+ % #???????????????? | | ??????????????????# = #???????????????? | | ?????????# / # #???????????????? | | ?????????# ; @ #???????????????? | | ?????????# ; ##??????????????? | | ?????????# ; #??????????????? | | ?????????#########; #??????????????? | | ?????????????????#; "#??????????????? | | ?????????????????## ##??????????????? | | ??????????????????# ;#??????????????? | | ???###########????# ##??????????????? | | ???#]] !#####; ###########?????? | | ???#]] ?? | | ???#/ o ?? | | ???#// ?? | | ???#!! ############################# ??? | | ???#!! ## ##?????????? #???????????# ?? | | ???###### #??????????? ???????????? ]? | | ????????# #??????????? ?????????????? ? | | ????????# #??????????# | | ????????# #??????????#| #####" "##### | | ????????# #??????????## ##???#" " "#???# | | ????????# #???????????# #????#"""""""#???# | | ????????# ############# #????#########???# | | ????????# + # ##############???# | | ????????# #### " # # !* #???# | | ????????# #??# ! T # # ! #???# | | ????????# #??# " # # #???# | +----------------------------------------------------+ Best States ------------- Heat Dissipation 25 Energy Generation 14 Energy Capacity 250 Matter Stores 300 Matter Capacity 300 Sight Range 16 Terrain Scan Density 10 Evasion (%) 40 Recoil Reduction 2 Item Schematics ----------------- None Robot Schematics ------------------ None Fabricated ------------ Nothing Alien Tech Used ----------------- None Achievements -------------- Batter Up Challenges ------------ None Game ------ Seed EnhancedScanComputer Manual? 0 Play Time 00:05:44 Cumulative 24.8 hours Start 2024.09.17 @ 19:37:22 End 2024.09.17 @ 19:40:31 Sessions 1 Manual Loads 0 Difficulty Rogue Special Mode None Game No. 48 Rogue 48 Adventurer 0 Explorer 0 Win Type - Total 0 Types 0/0/0/0/0/0/0/0/0 Lore% 12 Gallery% 29 Achievement% 22 Wizard Run 0 Options --------- Layout 1 ASCII 0 Keyboard 0 Movement Arrows Keybinds 0 Fullscreen 2 Font 24/Smallcaps Map View 25x17 Zoom Use 60% Tactical HUD 0 Map Filters NONE Filters NONE Steam 1 RUN: 14926c39-3624-46df-b373-69f28948dc3a